bitfinex-derivatives/quotes_SOLF0:USTF0_20251101
["timestamp","ask_amount","ask_price","bid_price","bid_amount"]
[1761958028280,2.87,186.93,186.85,5.76705224]
[1761958028577,2.87,186.91,186.85,5.76705224]
[1761958028781,11.86978189,186.9,186.85,5.76705224]
[1761958029075,2.87,186.9,186.86,2.93]
[1761958029278,9.00447893,186.89,186.86,2.93]
[1761958029471,2.87,186.9,186.86,2.93]
[1761958029674,2.87,186.88,186.81,2.93]
[1761958029875,11.87438215,186.87,186.82,5.76705224]
[1761958030080,2.87,186.87,186.82,5.76705224]
[1761958030275,2.87,186.87,186.83,2.93]
[1761958030482,2.87,186.96,186.86,0.03462786]
[1761958030681,2.87,186.94,186.86,0.03462786]
[1761958030881,2.87,186.92,186.86,0.03462786]
[1761958031077,2.87,186.9,186.86,0.03462786]
[1761958031380,2.87,186.88,186.86,0.03462786]
[1761958031678,9.01148742,186.87,186.86,0.03462786]
[1761958031877,9.01148742,186.87,186.86,2.96462786]
[1761958032073,2.87,186.92,186.86,2.96462786]
[1761958032268,2.87,186.9,186.86,0.03462786]
[1761958032472,2.87,186.88,186.86,0.03462786]
[1761958032669,11.89183464,186.87,186.86,0.03462786]
[1761958033071,2.87,186.86,186.79,9.51097688]
[1761958033376,9.02183464,186.85,186.79,9.51097688]
[1761958033574,11.89183464,186.84,186.79,12.44097688]
[1761958033778,2.87,186.84,186.79,12.44097688]
[1761958034076,2.87,186.82,186.77,6.67392464]
[1761958034380,9.03285011,186.81,186.78,2.93]
[1761958034578,2.87,186.9,186.79,2.93]
[1761958034778,2.87,186.88,186.79,2.93]
[1761958034983,2.87,186.86,186.79,2.93]
[1761958035186,9.03629544,186.85,186.79,9.60392464]
[1761958035483,11.90629544,186.84,186.8,2.93]
[1761958035685,9.03629544,186.83,186.8,2.93]
[1761958035880,9.03629544,186.82,186.8,2.93]
[1761958036080,2.87,186.84,186.8,2.93]
[1761958036380,9.04078967,186.83,186.8,2.93]
[1761958036581,9.04078967,186.82,186.8,2.93]
[1761958036879,2.87,186.84,186.79,6.67392464]
[1761958037074,9.04168401,186.83,186.8,2.86]
[1761958037274,2.83,186.85,186.8,9.53392464]
[1761958037482,11.87288043,186.84,186.8,9.53392464]
[1761958037676,9.04288043,186.83,186.8,9.53392464]
[1761958037873,2.83,186.84,186.81,2.86]
[1761958038075,11.87288099,186.83,186.8,6.71066303]
[1761958038271,2.83,186.83,186.8,6.71066303]
[1761958038678,9.04382534,186.82,186.8,0.03673839]
[1761958038879,2.83,186.83,186.79,76.46]
[1761958039080,9.04475752,186.82,186.79,79.2]
[1761958039275,2.83,186.83,186.8,76.48]
[1761958039489,9.04562974,186.82,186.8,79.22]
[1761958039686,2.83,186.83,186.8,79.22]
[1761958039877,9.04563716,186.82,186.8,76.48]
[1761958040080,2.83,186.83,186.8,76.48]
[1761958040278,2.88,186.81,186.79,0.03518375]
[1761958040485,2.83705224,186.9,186.79,76.51518375]
[1761958040684,2.88,186.88,186.79,76.51518375]
[1761958040892,2.88,186.86,186.79,76.51518375]
[1761958041190,2.88,186.84,186.79,76.48]
[1761958041386,2.88,186.82,186.79,76.48]
[1761958041690,4.61963781,186.81,186.79,76.48]
[1761958042191,2.88,186.82,186.79,76.48]
[1761958042493,2.88,186.89,186.8,5.57705224]
[1761958042785,11.9316636,186.88,186.81,2.74]
[1761958042986,11.9316636,186.87,186.81,2.74]
[1761958043189,2.88,186.85,186.81,2.74]
[1761958043384,9.0516636,186.84,186.81,2.74]
[1761958043585,2.88,186.85,186.81,2.74]
[1761958043794,9.05206836,186.84,186.81,2.74]
[1761958044091,2.88,186.84,186.8,12.25097688]
[1761958044496,2.88,186.84,186.81,2.74]
[1761958045699,2.88,186.84,186.81,2.77641127]
[1761958046385,2.88,186.84,186.82,76.48]
[1761958047495,2.88,186.84,186.83,4.99203638]
[1761958048095,2.88,186.84,186.82,81.47203638]
[1761958048280,2.88,186.84,186.83,4.99203638]
[1761958049096,2.88,186.84,186.82,81.47203638]
[1761958049294,2.88,186.84,186.83,4.99203638]
[1761958049794,2.88,186.95,186.83,4.99203638]
[1761958049990,2.88,186.93,186.84,79.16]
[1761958050185,2.88,186.91,186.84,84.15203638]
[1761958050384,9.06417693,186.9,186.84,84.15203638]
[1761958050591,2.88,186.88,186.84,4.99203638]
[1761958050790,2.83705224,186.97,186.84,4.99203638]
[1761958050791,2.88,186.86,186.85,48.42]
[1761958050993,11.94417693,186.86,186.85,48.42]
[1761958051389,11.94417693,186.86,186.85,48.45608486]
[1761958052487,9.06417693,186.86,186.85,48.45608486]
[1761958052688,9.06417693,186.86,186.85,51.19608486]
[1761958052887,8.30048906,186.86,186.85,51.19608486]
[1761958053691,2.88,186.92,186.85,56.18812124]
[1761958053898,7.51008755,186.91,186.85,56.18812124]
[1761958054194,7.51008755,186.9,186.86,2.74]
[1761958054395,4.63008755,186.89,186.86,2.74]
[1761958054596,4.63008755,186.88,186.87,2.74]
[1761958054795,7.51008755,186.92,186.87,7.73203638]
[1761958054987,4.63008755,186.91,186.88,2.74]
[1761958055188,4.63008755,186.9,186.88,2.74]
[1761958055395,4.63008755,186.89,186.88,2.74]
[1761958056103,4.63008755,186.9,186.88,2.74]
[1761958056291,4.63008755,186.89,186.88,2.74]
[1761958056595,4.63008755,186.9,186.88,2.74]
[1761958056796,4.63008755,186.89,186.88,2.74]
[1761958057891,4.63008755,186.9,186.88,2.74]
[1761958058102,4.63008755,186.89,186.88,2.74]
[1761958058792,4.63008755,186.9,186.88,2.74]
[1761958058997,4.63008755,186.89,186.88,7.73203638]
[1761958059596,2.88,186.89,186.88,4.99203638]
[1761958059798,2.88,186.88,186.87,39.32]
[1761958059996,7.51008755,186.88,186.87,39.32]
[1761958061702,4.63008755,186.88,186.87,39.32]
[1761958062501,4.63008755,186.9,186.87,42.06]
[1761958062701,4.61554221,186.89,186.88,7.7320288]
[1761958063098,4.61554221,186.89,186.88,2.74]
[1761958063895,2.88,186.93,186.89,2.74]
[1761958064101,4.61487181,186.92,186.9,4.99017261]
[1761958064406,4.61487181,186.91,186.9,4.99017261]
[1761958065006,8.97819048,186.91,186.9,4.99017261]
[1761958068097,8.97819048,186.91,186.89,7.73017261]
[1761958068297,8.97819048,186.9,186.89,7.73017261]
[1761958069305,2.88,186.93,186.89,2.74]
[1761958069508,8.97520579,186.92,186.9,4.98938431]
[1761958069710,8.97520579,186.91,186.9,4.98938431]
[1761958069897,8.97520579,186.91,186.9,7.65938431]
[1761958070412,8.97520579,186.91,186.9,4.98938431]
[1761958071608,8.97520579,186.91,186.9,7.65938431]
[1761958073304,8.97520579,186.91,186.9,83.95938431]
[1761958075214,8.97520579,186.91,186.9,4.98938431]
[1761958075615,8.97520579,186.91,186.9,81.24938431]
[1761958079817,8.97520579,186.91,186.9,4.98938431]
[1761958080014,8.97520579,186.91,186.9,81.20938431]
[1761958081015,4.61309161,186.91,186.9,81.20938431]
[1761958081214,4.61309161,186.91,186.9,76.22]
[1761958081418,4.61309161,186.91,186.89,4.48444391]
[1761958081620,4.61309161,186.91,186.9,76.2]
[1761958082116,4.61309161,186.91,186.89,11.15836855]
[1761958082421,4.61309161,186.91,186.9,76.2]
[1761958082623,4.61309161,186.91,186.9,76.18]
[1761958082925,4.61309161,186.91,186.9,78.85]
[1761958083108,2.9,186.93,186.9,78.85]
[1761958083314,8.97611946,186.92,186.91,4.9928237]
[1761958083625,8.97611946,186.92,186.91,80.34154468]
[1761958085324,8.97611946,186.92,186.91,83.01154468]
[1761958085824,11.87611946,186.92,186.91,80.34154468]
[1761958087025,11.87611946,186.92,186.91,80.30154468]
[1761958087322,8.97611946,186.92,186.91,82.97154468]
[1761958088032,8.97611946,186.92,186.91,84.78598859]
[1761958089637,8.97611946,186.92,186.91,91.45991323]
[1761958089831,3.99939638,186.92,186.91,84.78598859]
[1761958090031,2.9,186.98,186.92,2.67]
[1761958090232,4.36448201,186.97,186.95,7.66232905]
[1761958090531,2.9,186.98,186.96,80.30154468]
[1761958090735,2.9,186.98,186.97,4.16154468]
[1761958091033,7.26422494,186.98,186.97,4.16154468]
[1761958093232,0.18,186.97,186.91,4.99409956]
[1761958093431,1.81444391,186.95,186.88,26.92]
[1761958093641,4.36422494,186.94,186.88,26.92]
[1761958093839,4.36422494,186.93,186.88,26.92]
[1761958094040,4.36422494,186.92,186.88,26.92]
[1761958094239,4.36422494,186.91,186.88,26.92]
[1761958094534,4.36422494,186.9,186.88,26.92]
[1761958094728,4.36422494,186.89,186.88,26.92]
[1761958094932,1.81444391,186.99,186.89,2.67]
[1761958095539,0.04079532,186.91,186.89,9.32643874]
[1761958095739,0.04079532,186.91,186.9,4.48444391]
[1761958096239,1.81444391,187.01,186.9,4.48444391]
[1761958096835,0.03833488,186.92,186.9,4.48444391]
[1761958097041,0.03833488,186.92,186.88,26.92]
[1761958097042,0.03833488,186.92,186.88,6.65643874]
[1761958097236,0.03833488,186.92,186.88,36.4]
[1761958097639,1.81444391,186.98,186.88,36.4]
[1761958098339,0.03462436,186.92,186.88,36.4]
[1761958098536,0.03462436,186.92,186.88,39.24]
[1761958101336,0.03462436,186.92,186.88,2.84]
[1761958102037,4.610358,186.91,186.88,2.84]
[1761958102243,4.610358,186.9,186.88,2.84]
[1761958102443,4.610358,186.89,186.88,2.84]
[1761958102742,4.610358,186.89,186.88,4.65444391]
[1761958103139,4.610358,186.89,186.88,1.81444391]
[1761958106844,8.91265901,186.89,186.88,1.81444391]
[1761958107042,8.91265901,186.89,186.83,8.47088265]
[1761958107344,8.91265901,186.88,186.83,1.81444391]
[1761958107547,8.91265901,186.87,186.83,4.68444391]
[1761958107739,0.03462436,186.92,186.83,4.68444391]
[1761958107740,8.91265901,186.86,186.83,4.68444391]
[1761958107940,8.91265901,186.85,186.83,4.68444391]
[1761958108145,8.91265901,186.84,186.83,4.68444391]
[1761958109546,8.91265901,186.84,186.81,2.87]
[1761958109746,0.03754596,186.86,186.83,1.81444391]
[1761958110042,8.89841482,186.85,186.83,1.81444391]
[1761958110240,0.03754596,186.86,186.83,1.81444391]
[1761958110241,8.89841482,186.84,186.83,1.81444391]
[1761958110944,4.6008658,186.84,186.83,1.81444391]
[1761958111154,8.89681837,186.84,186.83,1.81444391]
[1761958114042,8.89681837,186.84,186.83,4.68444391]
[1761958114345,0.03754596,186.86,186.83,4.68444391]
[1761958114346,0.03754596,186.86,186.84,2.87]
[1761958114551,4.59655602,186.85,186.84,2.87]
[1761958117651,0.03754596,186.86,186.84,2.87]
[1761958121053,0.03754596,186.86,186.83,1.81444391]
[1761958121054,1.81444391,186.99,186.86,2.87]
[1761958121355,8.85220576,186.98,186.88,1.81444391]
[1761958121559,8.85220576,186.97,186.88,1.81444391]
[1761958121852,8.85220576,186.96,186.92,4.68444391]
[1761958122045,8.85220576,186.95,186.94,4.68444391]
[1761958122250,1.81444391,187.09,186.95,2.87]
[1761958122445,4.25500221,187.08,187.0,1.81444391]
[1761958122754,4.25500221,187.07,187.0,1.81444391]
[1761958122950,4.25500221,187.06,187.0,1.81444391]
[1761958123148,4.25500221,187.05,187.0,1.81444391]
[1761958123355,4.25500221,187.04,187.0,1.81444391]
[1761958123551,4.25500221,187.03,187.0,1.81444391]
[1761958123854,4.25500221,187.02,187.0,1.81444391]
[1761958124054,4.25500221,187.01,187.0,1.81444391]
[1761958124248,4.25500221,187.1,187.0,1.84922046]
[1761958124450,4.25500221,187.09,187.0,1.84922046]
[1761958124646,4.25500221,187.08,187.02,1.81444391]
[1761958124858,4.25500221,187.07,187.02,1.81444391]
[1761958125057,4.25500221,187.06,187.02,1.81444391]
[1761958125249,4.25500221,187.05,187.02,1.81444391]
[1761958125450,4.25500221,187.04,187.0,2.87]
[1761958125648,4.25500221,187.03,187.0,2.87]
[1761958125846,1.81444391,187.1,187.0,2.87]
[1761958126054,4.24939,187.09,187.0,2.87]
[1761958126256,4.24939,187.08,187.02,0.03753119]
[1761958126555,4.24939,187.07,187.02,0.03753119]
[1761958126854,4.24939,187.06,187.02,0.03753119]
[1761958127055,1.81444391,187.1,187.02,0.03753119]
[1761958127056,4.24939,187.05,187.02,0.03753119]
[1761958127256,4.24939,187.04,187.02,0.03753119]
[1761958127457,4.24939,187.03,187.02,0.03753119]
[1761958127659,4.24939,187.09,187.02,0.03753119]
[1761958127954,4.24939,187.08,187.02,0.03753119]
[1761958128155,4.24939,187.07,187.02,2.85753119]
[1761958128357,1.81444391,187.1,187.02,2.85753119]
[1761958128358,4.24939,187.06,187.02,2.85753119]
[1761958128548,4.24939,187.05,187.02,2.85753119]
[1761958128750,4.24939,187.04,187.02,2.85753119]
[1761958128953,1.81444391,187.1,187.02,2.85753119]
[1761958129154,4.24419032,187.09,187.02,2.85753119]
[1761958129360,4.24419032,187.08,187.02,2.85753119]
[1761958129561,4.24419032,187.07,187.02,2.85753119]
[1761958129859,4.24419032,187.06,187.02,2.85753119]
[1761958130062,4.24419032,187.05,187.02,2.85753119]
[1761958130263,1.81444391,187.1,187.02,2.85753119]
[1761958130461,4.24086416,187.09,187.02,2.85753119]
[1761958133567,4.24086416,187.08,187.02,2.85753119]
[1761958133763,4.24086416,187.07,187.02,2.85753119]
[1761958133962,1.81444391,187.11,187.02,2.85753119]
[1761958134163,8.71630949,187.1,187.02,2.85753119]
[1761958134363,8.71470781,187.09,187.02,2.85753119]
[1761958134559,8.71470781,187.08,187.02,2.85753119]
[1761958134759,8.71470781,187.07,187.02,2.85753119]
[1761958134959,4.47852074,187.06,187.02,2.85753119]
[1761958135160,1.81444391,187.11,187.02,2.85753119]
[1761958135361,8.71052879,187.1,187.02,2.85753119]
[1761958135556,8.71052879,187.09,187.02,2.85753119]
[1761958135761,8.71052879,187.08,187.02,2.85753119]
[1761958135968,8.71052879,187.07,187.02,2.85753119]
[1761958136168,1.81444391,187.11,187.02,2.85753119]
[1761958136472,8.70807451,187.1,187.02,2.85753119]
[1761958136669,8.70807451,187.09,187.02,2.85753119]
[1761958136966,8.70807451,187.08,187.02,2.85753119]
[1761958137158,4.47588962,187.07,187.02,2.85753119]
[1761958137359,1.81444391,187.11,187.02,2.85753119]
[1761958137559,8.70573634,187.1,187.02,2.85753119]
[1761958137757,8.70573634,187.09,187.02,2.85753119]
[1761958137957,8.70573634,187.08,187.02,2.85753119]
[1761958138160,4.47468782,187.07,187.02,2.85753119]
[1761958138360,1.81444391,187.11,187.02,2.85753119]
[1761958138560,8.70325356,187.1,187.02,2.85753119]
[1761958138767,8.70325356,187.09,187.02,2.85753119]
[1761958138965,8.70325356,187.08,187.02,2.85753119]
[1761958139174,4.47341169,187.07,187.02,2.85753119]
[1761958139467,1.81444391,187.11,187.02,2.85753119]
[1761958139667,8.70118075,187.1,187.02,2.85753119]
[1761958139869,8.70118075,187.09,187.02,2.85753119]
[1761958140065,8.70118075,187.08,187.02,2.85753119]
[1761958140263,119.34,187.15,187.02,2.85753119]
[1761958140264,4.47234628,187.07,187.02,2.85753119]
[1761958140465,1.81444391,187.09,187.02,2.85753119]
[1761958140668,8.69998225,187.08,187.02,2.85753119]
[1761958140869,4.47173026,187.07,187.02,2.85753119]
[1761958141071,1.81444391,187.09,187.02,2.82]
[1761958141265,8.69998225,187.08,187.02,2.82]
[1761958141465,4.47173026,187.07,187.02,2.82]
[1761958141666,2.83176572,187.12,187.02,2.82]
[1761958141970,8.69782217,187.11,187.03,2.85620878]
[1761958142170,8.69782217,187.1,187.03,2.85620878]
[1761958142468,8.69782217,187.09,187.03,2.85620878]
[1761958142667,4.47061999,187.08,187.03,2.85620878]
[1761958142871,2.83176572,187.12,187.03,2.85620878]
[1761958143073,8.69512532,187.11,187.03,2.85620878]
[1761958143368,8.69512532,187.1,187.03,2.85620878]
[1761958143572,8.69512532,187.09,187.03,2.85620878]
[1761958143874,2.83176572,187.12,187.03,2.85620878]
[1761958144173,8.69293187,187.11,187.03,2.85620878]
[1761958144470,4.46831505,187.1,187.03,2.85620878]
[1761958144671,15.15176572,187.15,187.03,2.85620878]
[1761958144973,8.6902632,187.14,187.03,2.85620878]
[1761958145273,470.08618779,187.18,187.03,2.85620878]
[1761958145472,8.68586684,187.17,187.03,2.82]
[1761958145673,8.68586684,187.16,187.03,2.82]
[1761958145875,8.68586684,187.15,187.03,2.82]
[1761958146074,8.73596582,187.14,187.03,2.82]
[1761958146274,2.83176572,187.18,187.1,2.82]
[1761958146476,8.73208962,187.17,187.1,2.82]
[1761958146775,8.73208962,187.16,187.1,2.82]
[1761958146962,2.83176572,187.18,187.1,2.82]
[1761958146963,8.73208962,187.15,187.1,2.82]
[1761958147163,4.4631658,187.14,187.1,2.82]
[1761958147369,2.83176572,187.21,187.1,2.82]
[1761958147675,8.72274103,187.2,187.1,2.82]
[1761958147874,2.83176572,187.18,187.1,2.82]
[1761958148176,8.7233497,187.17,187.1,2.82]
[1761958148370,4.4565073,187.16,187.1,2.82]
[1761958148569,2.83176572,187.18,187.1,2.82]
[1761958148772,8.71998173,187.17,187.12,0.03781226]
[1761958148979,4.45494217,187.16,187.13,2.82]
[1761958149175,2.83176572,187.18,187.13,2.82]
[1761958149377,8.71737437,187.17,187.13,2.82]
[1761958149578,4.4536101,187.16,187.13,2.82]
[1761958149778,2.83176572,187.18,187.13,2.82]
[1761958150080,8.71691138,187.17,187.13,2.82]
[1761958150375,2.83176572,187.18,187.13,2.82]
[1761958150579,8.71458898,187.17,187.13,2.82]
[1761958150778,2.83176572,187.18,187.13,2.82]
[1761958151281,8.71455396,187.17,187.13,2.82]
[1761958151483,2.83176572,187.18,187.13,2.82]
[1761958151782,8.71278345,187.17,187.13,2.82]
[1761958152082,2.83176572,187.18,187.13,2.82]
[1761958152282,8.71278345,187.17,187.13,2.82]
[1761958152477,2.83176572,187.18,187.13,2.82]
[1761958153280,2.83176572,187.18,187.12,0.03781226]
[1761958153478,8.71189909,187.17,187.12,0.03781226]
[1761958153786,75.98,187.22,187.12,2.85781226]
[1761958154076,11.5422154,187.21,187.12,2.85781226]
[1761958154275,8.71044968,187.2,187.12,2.85781226]
[1761958154475,8.71044968,187.19,187.12,2.85781226]
[1761958154678,4.45039534,187.18,187.12,2.85781226]
[1761958154879,2.83176572,187.21,187.12,2.85781226]
[1761958155182,76.1,187.22,187.12,2.85781226]
[1761958155183,8.7109962,187.2,187.12,2.85781226]
[1761958155383,4.45055812,187.19,187.12,2.85781226]
[1761958155682,76.1,187.22,187.12,2.85781226]
[1761958155882,8.71194285,187.21,187.12,2.85781226]
[1761958156082,76.1,187.22,187.12,2.85781226]
[1761958156083,8.71194285,187.2,187.12,2.85781226]
[1761958156285,8.71294855,187.19,187.12,2.85781226]
[1761958156484,4.45119705,187.18,187.12,2.85781226]
[1761958156682,76.1,187.22,187.12,2.85781226]
[1761958156875,8.71399921,187.21,187.12,2.85781226]
[1761958157071,8.71399921,187.2,187.12,2.85781226]
[1761958157276,8.71399921,187.19,187.12,2.85781226]
[1761958157483,4.45224771,187.18,187.12,2.85781226]
[1761958157687,76.1,187.22,187.12,2.85781226]
[1761958157885,8.71689814,187.21,187.12,2.85781226]
[1761958158076,4.26316928,187.2,187.12,2.85781226]
[1761958158276,76.1,187.22,187.12,2.85781226]
[1761958158277,8.71689814,187.19,187.12,2.85781226]
[1761958158483,8.71689814,187.18,187.12,2.85781226]
[1761958158681,76.1,187.22,187.12,2.85781226]
[1761958158882,8.7207014,187.21,187.12,2.85781226]
[1761958159089,8.7207014,187.2,187.12,2.85781226]
[1761958159286,8.7207014,187.19,187.12,2.85781226]
[1761958159485,8.7207014,187.18,187.12,2.85781226]
[1761958159687,4.45567206,187.17,187.12,2.85781226]
[1761958159881,76.1,187.22,187.12,2.85781226]
[1761958160080,8.72356444,187.21,187.12,2.85781226]
[1761958160284,8.72356444,187.2,187.12,2.85781226]
[1761958160478,8.72356444,187.19,187.12,2.85781226]
[1761958160684,8.72356444,187.18,187.12,2.85781226]
[1761958160986,4.45713487,187.17,187.12,2.85781226]
[1761958161177,78.93176572,187.22,187.12,2.85781226]
[1761958161382,8.73105958,187.21,187.12,2.85781226]
[1761958161582,8.73105958,187.2,187.12,2.85781226]
[1761958161780,8.73105958,187.19,187.12,2.85781226]
[1761958161987,8.73105958,187.18,187.12,2.85781226]
[1761958162286,8.73105958,187.17,187.12,2.85781226]
[1761958162587,4.46096437,187.16,187.12,2.85781226]
[1761958162787,78.93176572,187.22,187.12,2.85781226]
[1761958162986,84.75615344,187.21,187.12,2.85781226]
[1761958163189,8.73615344,187.2,187.12,2.85781226]
[1761958163486,8.73615344,187.19,187.12,2.85781226]
[1761958163684,8.73615344,187.18,187.12,2.85781226]
[1761958163884,8.73615344,187.17,187.12,2.85781226]
[1761958164085,8.73615344,187.16,187.12,2.85781226]
[1761958164283,76.02,187.21,187.12,2.85781226]
[1761958164284,4.46356698,187.15,187.12,2.85781226]
[1761958164489,8.74245481,187.14,187.12,0.03781226]
[1761958164790,2.83176572,187.19,187.12,0.03781226]
[1761958164988,8.74819765,187.18,187.12,0.03781226]
[1761958165184,8.74819765,187.17,187.12,0.03781226]
[1761958165390,8.74819765,187.16,187.12,0.03781226]
[1761958165586,8.74819765,187.15,187.12,0.03781226]
[1761958165779,8.74819765,187.14,187.12,0.03781226]
[1761958165985,8.74819765,187.13,187.12,0.03781226]
[1761958169502,8.74819765,187.13,187.12,2.75781226]
[1761958169697,84.78819765,187.13,187.12,2.75781226]
[1761958170895,84.74819765,187.13,187.12,2.75781226]
[1761958173899,84.76401703,187.13,187.12,2.75781226]
[1761958174300,8.76401703,187.13,187.12,2.75781226]
[1761958174500,84.76401703,187.13,187.12,2.75781226]
[1761958176200,80.48536703,187.13,187.12,2.75781226]
[1761958184111,4.48536703,187.13,187.12,2.75781226]
[1761958185707,4.48536703,187.13,187.12,0.03781226]
[1761958190308,4.48536703,187.13,187.12,4.96084196]
[1761958192505,80.36536703,187.13,187.12,4.96084196]
[1761958192806,4.48536703,187.13,187.12,4.96084196]
[1761958193013,80.34536703,187.13,187.12,4.96084196]
[1761958194003,80.36859912,187.13,187.12,4.96084196]
[1761958197020,80.34859912,187.13,187.12,4.96084196]
[1761958201323,6.31987753,187.13,187.12,4.96084196]
[1761958201517,82.11987753,187.13,187.12,4.96084196]
[1761958202124,82.11987753,187.13,187.12,4.17826633]
[1761958202622,82.12106198,187.13,187.12,4.17826633]
[1761958203818,80.30978357,187.13,187.12,4.17826633]
[1761958204029,80.28978357,187.13,187.12,6.91826633]
[1761958204320,4.50978357,187.13,187.12,6.91826633]
[1761958204518,4.50978357,187.13,187.12,13.57470507]
[1761958207420,4.50978357,187.13,187.12,6.91826633]
[1761958210225,4.50978357,187.13,187.12,13.57448948]
[1761958211328,4.50978357,187.13,187.12,6.91826633]
[1761958218026,1.81127841,187.15,187.13,2.88]
[1761958218227,1.81127841,187.15,187.14,4.14045407]
[1761958218531,6.3146226,187.15,187.14,4.14045407]
[1761958220134,6.3146226,187.15,187.12,0.03781226]
[1761958220334,4.50334419,187.14,187.12,0.03781226]
[1761958220529,4.50334419,187.13,187.12,0.03781226]
[1761958222335,4.50334419,187.13,187.12,2.76781226]
[1761958223228,4.50334419,187.13,187.12,0.03781226]
[1761958227434,6.3146226,187.13,187.12,2.76781226]
[1761958242752,4.50334419,187.13,187.12,2.76781226]
[1761958248063,3.83531145,187.13,187.12,12.78696888]
[1761958248255,1.81127841,187.19,187.13,2.87]
[1761958248455,1.81127841,187.19,187.14,2.87]
[1761958250164,1.81127841,187.19,187.15,9.52293964]
[1761958250664,1.81127841,187.19,187.16,2.87]
[1761958253664,1.81127841,187.19,187.16,2.90525828]
[1761958254668,1.81127841,187.19,187.16,0.03525828]
[1761958254965,1.81127841,187.19,187.16,2.90525828]
[1761958255868,28.27576048,187.26,187.16,2.90525828]
[1761958256069,1.81127841,187.19,187.16,2.90525828]
[1761958258863,1.81127841,187.19,187.16,0.03525828]
[1761958259264,1.81127841,187.17,187.16,0.03525828]
[1761958260170,6.29275973,187.17,187.16,0.03525828]
[1761958261370,4.48148132,187.17,187.16,0.03525828]
[1761958273174,4.48148132,187.17,187.1,6.65293964]
[1761958273372,2.82879193,187.14,187.1,6.65293964]
[1761958273573,4.48148132,187.13,187.1,9.52293964]
[1761958273777,4.48148132,187.12,187.1,9.52293964]
[1761958273979,4.48148132,187.11,187.1,9.52293964]
[1761958277477,0.03871469,187.12,187.11,2.77]
[1761958277676,4.52202342,187.12,187.11,2.77]
[1761958277873,4.52205937,187.12,187.11,2.77]
[1761958278675,4.52205937,187.12,187.11,6.64971942]
[1761958279576,4.52205937,187.12,187.1,6.64971942]
[1761958279782,4.48334468,187.11,187.09,6.64971942]
[1761958279979,4.48334468,187.1,187.09,6.64971942]
[1761958281271,4.48334468,187.1,187.08,9.55971942]
[1761958281470,4.48334468,187.09,187.08,9.55971942]
[1761958285875,0.03871469,187.12,187.08,9.55971942]
[1761958286075,4.48014097,187.11,187.08,9.55971942]
[1761958286280,4.48014097,187.1,187.08,9.55971942]
[1761958286482,0.03871469,187.12,187.08,9.55971942]
[1761958286677,4.47974771,187.11,187.09,2.91]
[1761958286980,4.47974771,187.1,187.09,2.91]
[1761958287891,0.03871469,187.12,187.1,2.91]
[1761958288187,4.47903163,187.11,187.1,9.55325245]
[1761958291595,0.03871469,187.12,187.11,2.91]
[1761958291796,4.51728266,187.12,187.11,2.91]
[1761958292697,4.51728266,187.12,187.1,6.64325245]
[1761958292899,0.03871469,187.12,187.1,6.64325245]
[1761958293298,4.47870305,187.11,187.09,6.64325245]
[1761958293605,4.47870305,187.1,187.08,6.64325245]
[1761958293906,0.03871469,187.12,187.08,6.64325245]
[1761958294097,4.47922499,187.11,187.1,4.98322599]
[1761958297699,4.47922499,187.11,187.1,7.89322599]
[1761958297901,0.03871469,187.12,187.11,2.91]
[1761958298509,0.03871469,187.12,187.11,9.55156565]
[1761958298510,4.50878189,187.12,187.11,9.55156565]
[1761958302310,4.50878189,187.12,187.11,2.91]
[1761958303706,4.50878189,187.12,187.11,6.64779524]
[1761958303909,4.50878189,187.12,187.1,6.64779524]
[1761958304112,4.4700672,187.11,187.09,6.64779524]
[1761958304415,8.97123234,187.1,187.08,6.64779524]
[1761958304714,8.97123234,187.09,187.08,4.99070873]
[1761958305411,8.97123234,187.09,187.07,4.99070873]
[1761958305614,8.97123234,187.08,187.07,4.99070873]
[1761958308403,8.97123234,187.08,187.07,2.91]
[1761958310917,4.50116514,187.08,187.07,2.91]
[1761958311616,4.50116514,187.08,187.07,9.5600261]
[1761958312108,4.50116514,187.08,187.07,2.91]
[1761958312916,4.50116514,187.08,187.07,9.56122954]
[1761958317125,4.50116514,187.08,187.07,2.91]
[1761958319832,0.03871469,187.12,187.07,12.89057567]
[1761958320031,8.97305627,187.11,187.1,2.91]
[1761958322128,8.97305627,187.11,187.1,9.56049706]
[1761958322327,8.97305627,187.11,187.1,6.65049706]
[1761958326231,8.97305627,187.11,187.1,9.56049706]
[1761958328532,8.97305627,187.11,187.1,6.65049706]